bitfinex-derivatives/quotes_BTCF0:USTF0_20251128
["timestamp","ask_amount","ask_price","bid_price","bid_amount"]
[1764349903699,0.02118,91193.0,91192.0,0.05725]
[1764349904287,0.0109651,91190.0,91185.0,0.0109656]
[1764349904484,0.04327,91186.0,91185.0,0.0542756]
[1764349906794,0.04327,91186.0,91185.0,0.0552756]
[1764349906997,0.0542349,91191.0,91190.0,0.054275]
[1764349907198,0.3442349,91191.0,91190.0,0.054275]
[1764349907898,0.0109641,91197.0,91196.0,0.04331]
[1764349908102,0.8842341,91197.0,91196.0,0.04331]
[1764349908691,0.5842341,91197.0,91196.0,0.04331]
[1764349909598,0.8752341,91197.0,91196.0,0.02199]
[1764349909793,0.8752341,91197.0,91187.0,0.20291573]
[1764349909794,0.0542348,91192.0,91191.0,0.04331]
[1764349910098,0.27327,91192.0,91191.0,0.04331]
[1764349910797,0.72327,91192.0,91191.0,0.04331]
[1764349910999,0.04327,91192.0,91191.0,0.04331]
[1764349911704,0.04427,91197.0,91196.0,0.04331]
[1764349911996,0.001,91197.0,91196.0,0.04331]
[1764349912203,0.0109621,91214.0,91198.0,0.04331]
[1764349912387,0.0542321,91214.0,91213.0,0.02199]
[1764349912590,0.62925207,91214.0,91213.0,0.02199]
[1764349912790,0.62925207,91214.0,91213.0,0.04331]
[1764349913199,0.83925207,91214.0,91213.0,0.04331]
[1764349913793,0.59925207,91214.0,91213.0,0.04331]
[1764349913993,0.83925207,91214.0,91213.0,0.04331]
[1764349914203,0.04327,91205.0,91204.0,0.00016447]
[1764349914390,0.49327,91205.0,91204.0,0.00016447]
[1764349914889,0.86327,91205.0,91204.0,0.00016447]
[1764349915401,0.88832125,91205.0,91204.0,0.00016447]
[1764349916499,1.06168125,91205.0,91204.0,0.00016447]
[1764349916907,1.06468125,91205.0,91204.0,0.00016447]
[1764349917505,0.04359,91189.0,91188.0,0.0562651]
[1764349918708,0.02118,91189.0,91188.0,0.0562651]
[1764349918892,0.0546648,91192.0,91191.0,0.0453]
[1764349919099,0.5146648,91192.0,91191.0,0.0453]
[1764349919405,0.0546651,91189.0,91188.0,0.001]
[1764349919708,0.0546656,91185.0,91184.0,0.0453]
[1764349919914,0.8646656,91185.0,91184.0,0.0453]
[1764349920408,0.0437,91180.0,91179.0,0.00016447]
[1764349920604,0.8637,91180.0,91179.0,0.01207885]
[1764349920919,0.88975471,91180.0,91179.0,0.00016447]
[1764349921213,0.64975471,91180.0,91179.0,0.04546447]
[1764349921399,0.87975471,91180.0,91179.0,0.04546447]
[1764349921799,0.87975471,91180.0,91179.0,0.04846447]
[1764349922297,0.09975471,91180.0,91179.0,0.04846447]
[1764349922493,0.0737,91180.0,91179.0,0.04846447]
[1764349923404,0.0437,91180.0,91179.0,0.04846447]
[1764349924812,0.0437,91180.0,91179.0,0.06050889]
[1764349925003,0.8837,91180.0,91179.0,0.01520889]
[1764349925912,0.9097729,91180.0,91179.0,0.00316447]
[1764349926506,0.0437,91175.0,91174.0,1e-08]
[1764349926695,0.0437,91175.0,91138.0,0.09852631]
[1764349926696,0.0546677,91167.0,91140.0,0.20291573]
[1764349926897,0.0546704,91145.0,91144.0,0.05926]
[1764349927104,0.0546713,91137.0,91136.0,0.05926]
[1764349927500,0.0546713,91137.0,91136.0,0.0453]
[1764349927803,0.83477623,91137.0,91136.0,0.0453]
[1764349928008,0.0437,91129.0,91128.0,0.05926]
[1764349929007,0.0437,91129.0,91128.0,0.06726]
[1764349929599,0.04380493,91137.0,91136.0,0.0453]
[1764349929804,0.00010493,91137.0,91136.0,0.0453]
[1764349930000,0.02139493,91137.0,91136.0,0.0453]
[1764349930205,0.04380493,91137.0,91136.0,0.0453]
[1764349930808,0.04380493,91137.0,91136.0,0.0493]
[1764349931208,0.81380493,91137.0,91136.0,0.02731]
[1764349931403,0.81380493,91137.0,91136.0,0.004]
[1764349931604,0.81380493,91137.0,91136.0,0.005]
[1764349932112,0.49380493,91137.0,91136.0,0.005]
[1764349932405,0.49380493,91137.0,91136.0,0.02831]
[1764349932606,0.49380493,91137.0,91136.0,0.0503]
[1764349932809,0.80380493,91137.0,91136.0,0.005]
[1764349935515,0.0549224,91128.0,91127.0,0.00016457]
[1764349935706,0.86499955,91128.0,91127.0,0.00016457]
[1764349936418,0.50499955,91128.0,91127.0,0.00016457]
[1764349937007,0.69499955,91128.0,91127.0,0.00016457]
[1764349937508,0.69799955,91128.0,91127.0,0.00016457]
[1764349937912,0.68702715,91128.0,91127.0,0.00016457]
[1764349938216,0.86046715,91128.0,91127.0,0.04631457]
[1764349938516,0.86046715,91128.0,91127.0,0.02341457]
[1764349938720,0.86046715,91128.0,91127.0,0.00016457]
[1764349939016,0.87264715,91128.0,91127.0,0.00016457]
[1764349940013,0.0549225,91127.0,91113.0,0.1189]
[1764349940316,0.04395,91125.0,91124.0,0.02325]
[1764349940512,0.46395,91125.0,91124.0,0.02325]
[1764349940719,0.90395,91125.0,91124.0,0.02325]
[1764349940915,0.04395,91116.0,91115.0,0.04631457]
[1764349941819,0.00316457,91125.0,91124.0,0.04615]
[1764349942912,0.04711457,91125.0,91124.0,0.04615]
[1764349943122,0.40411457,91125.0,91124.0,0.04615]
[1764349943818,0.40411457,91125.0,91124.0,0.04915]
[1764349944018,0.40411457,91125.0,91124.0,0.003]
[1764349944211,0.40411457,91125.0,91124.0,0.04715]
[1764349944412,0.45511457,91125.0,91124.0,0.04715]
[1764349945420,0.87287457,91125.0,91124.0,0.001]
[1764349945619,0.04395,91116.0,91115.0,0.04631457]
[1764349946316,0.39395,91116.0,91115.0,0.04631457]
[1764349946717,0.39395,91116.0,91115.0,0.05728857]
[1764349946923,0.39495,91116.0,91115.0,0.04631457]
[1764349947118,0.76495,91116.0,91115.0,0.04631457]
[1764349948919,0.76495,91116.0,91115.0,0.02341457]
[1764349949121,0.7759239,91116.0,91115.0,0.02119457]
[1764349951025,0.77602883,91116.0,91115.0,0.00016457]
[1764349952629,0.57602883,91116.0,91115.0,0.00016457]
[1764349952815,0.83602883,91116.0,91115.0,0.00016457]
[1764349954323,0.86213332,91116.0,91115.0,0.00016457]
[1764349954521,1.03561332,91116.0,91115.0,0.00016457]
[1764349956924,0.79561332,91116.0,91115.0,0.00016457]
[1764349958129,1.04561332,91116.0,91115.0,0.00016457]
[1764349959929,0.04446,91100.0,91099.0,0.1615]
[1764349960138,0.04456452,91100.0,91099.0,0.0426]
[1764349961031,0.04456452,91100.0,91099.0,0.0466]
[1764349961935,0.05554032,91100.0,91099.0,0.0466]
[1764349963137,0.05554032,91100.0,91099.0,0.05819572]
[1764349963334,0.04456452,91100.0,91099.0,0.05819572]
[1764349963537,0.02326452,91100.0,91099.0,0.05819572]
[1764349964441,0.00010452,91100.0,91099.0,0.05819572]
[1764349972437,0.04456452,91100.0,91099.0,0.05819572]
[1764349972843,0.44456452,91100.0,91099.0,0.05819572]
[1764349973546,0.47075352,91100.0,91099.0,0.05819572]
[1764349973937,0.89075352,91100.0,91099.0,0.01559572]
[1764349974249,0.89075352,91100.0,91099.0,0.004]
[1764349974436,0.04446,91091.0,91090.0,0.00010997]
[1764349974745,0.04446,91087.0,91070.0,0.01288]
[1764349975047,0.04446,91071.0,91070.0,0.05548]
[1764349975935,0.04458818,91071.0,91070.0,0.05548]
[1764349976441,0.04458818,91071.0,91070.0,0.06702223]
[1764349976641,0.04458818,91071.0,91070.0,0.07002223]
[1764349976842,0.00012818,91071.0,91070.0,0.07102223]
[1764349977046,0.00016467,91080.0,91079.0,0.0540983]
[1764349978145,0.0002557,91080.0,91079.0,0.0540983]
[1764349978345,0.0227157,91080.0,91079.0,0.0540983]
[1764349978555,0.0012557,91080.0,91079.0,0.0540983]
[1764349981252,0.04559,91089.0,91088.0,0.0540972]
[1764349981454,0.04559,91089.0,91080.0,0.01283]
[1764349981455,0.04559,91081.0,91080.0,0.04312]
[1764349981652,0.04559,91089.0,91088.0,0.0669272]
[1764349981857,0.26559,91089.0,91088.0,0.0669272]
[1764349982357,0.25559,91089.0,91088.0,0.0669272]
[1764349982752,0.04559,91089.0,91088.0,0.0669272]
[1764349983147,0.04859,91089.0,91088.0,0.0669272]
[1764349984058,0.02446,91089.0,91088.0,0.0669272]
[1764349984859,0.82859,91089.0,91088.0,0.05595]
[1764349985866,0.04559,91081.0,91080.0,0.06603672]
[1764349986064,0.81559,91081.0,91080.0,0.05505862]
[1764349986356,0.81559,91081.0,91079.0,0.00016467]
[1764349986357,0.0565682,91080.0,91079.0,0.00016467]
[1764349986562,0.04559,91065.0,91064.0,0.04312]
[1764349986754,0.81559,91065.0,91064.0,0.02106]
[1764349988259,0.81559,91065.0,91064.0,0.02406]
[1764349988462,0.81559,91065.0,91064.0,0.003]
[1764349988666,0.81559,91065.0,91064.0,0.004]
[1764349989165,0.81559,91065.0,91064.0,0.01552307]
[1764349989366,0.81559,91065.0,91064.0,0.03658307]
[1764349989662,0.81559,91065.0,91064.0,0.01552307]
[1764349989878,0.0109838,91034.0,91032.0,0.02106]
[1764349990168,0.0565751,91023.0,91000.0,0.26847002]
[1764349990363,0.81559,91023.0,91013.0,0.0109862]
[1764349990556,0.04559,91009.0,91008.0,0.05595]
[1764349991065,0.04559,91009.0,91008.0,0.0669369]
[1764349991267,0.00016478,91018.0,91008.0,0.04312]
[1764349991453,0.03559,91009.0,91008.0,0.0541069]
[1764349991654,0.42359,91009.0,91008.0,0.0541069]
[1764349991868,0.06359,91009.0,91008.0,0.06560733]
[1764349992065,0.30359,91009.0,91008.0,0.06560733]
[1764349992260,0.43359,91009.0,91008.0,0.06560733]
[1764349992571,0.04575478,91018.0,91017.0,0.04312]
[1764349992870,0.46575478,91018.0,91017.0,0.04312]
[1764349993261,0.55575478,91018.0,91017.0,0.04312]
[1764349993462,0.55575478,91018.0,91017.0,0.05595]
[1764349993665,0.77575478,91018.0,91017.0,0.05595]
[1764349994267,0.04577,91011.0,91010.0,0.0452]
[1764349994468,0.40577,91011.0,91010.0,0.0452]
[1764349994659,0.39977,91011.0,91010.0,0.0452]
[1764349994860,0.39877,91011.0,91010.0,0.0452]
[1764349995066,0.04577,91009.0,91008.0,0.01150043]
[1764349995367,0.04577,91009.0,91006.0,0.00027471]
[1764349995368,0.03777,91007.0,91006.0,0.00027471]
[1764349995569,0.03384,90993.0,90983.0,0.0109899]
[1764349995761,0.85393256,90993.0,90992.0,0.03506]
[1764349996068,0.42393256,90993.0,90992.0,0.03506]
[1764349996262,0.39393256,90993.0,90992.0,0.01283]
[1764349996463,0.39393256,90993.0,90986.0,0.0561894]
[1764349996464,0.03284,90987.0,90986.0,0.0561894]
[1764349996659,0.01651256,90993.0,90992.0,0.0561888]
[1764349996869,0.41293256,90993.0,90992.0,0.0452]
[1764349997072,0.86293256,90993.0,90992.0,0.02223]
[1764349997273,0.83009256,90993.0,90972.0,0.05906]
[1764349997485,0.1736,90992.0,90980.0,0.01386]
[1764349997660,0.5,90992.0,90981.0,0.0109901]
[1764349997866,0.03284,90991.0,90990.0,0.05906]
[1764349998165,0.66268,90991.0,90990.0,0.05906]
[1764349998364,0.66268,90991.0,90990.0,0.03609]
[1764349998562,0.88268,90991.0,90990.0,0.01386]
[1764349998976,0.88768,90991.0,90990.0,0.03709]
[1764349999567,0.405,90991.0,90990.0,0.06006]
[1764349999761,0.055,90991.0,90990.0,0.06006]
[1764349999969,0.005,90991.0,90990.0,0.06006]
[1764350001866,0.00016478,90996.0,90995.0,0.0452]
[1764350003878,0.00916478,90996.0,90995.0,0.0462]
[1764350005172,0.02558478,90996.0,90995.0,0.0462]
[1764350005373,0.04200478,90996.0,90995.0,0.0462]
[1764350006272,0.02558478,90996.0,90995.0,0.0462]
[1764350006575,0.00916478,90996.0,90995.0,0.0462]
[1764350007778,0.04178478,90996.0,90995.0,0.0462]
[1764350008778,0.04178478,90996.0,90995.0,0.001]
[1764350008779,0.86178478,90996.0,90995.0,0.001]
[1764350008978,0.45178478,90996.0,90995.0,0.001]
[1764350009171,0.60178478,90996.0,90995.0,0.001]
[1764350009570,0.88178478,90996.0,90995.0,0.001]
[1764350010280,1.05546478,90996.0,90995.0,0.001]
[1764350011174,0.03262,90981.0,90980.0,0.05816]
[1764350011482,0.44262,90981.0,90980.0,0.05816]
[1764350011966,0.44262,90981.0,90980.0,0.03619]
[1764350012173,0.03262,90973.0,90972.0,0.05816]
[1764350012377,0.03262,90973.0,90966.0,0.04457483]
[1764350012378,0.0436119,90967.0,90966.0,0.04457483]
[1764350012678,0.4236119,90967.0,90966.0,0.04457483]
[1764350012875,0.4236119,90967.0,90966.0,0.00027483]
[1764350013075,0.4236119,90967.0,90950.0,0.20386562]
[1764350013076,0.0436125,90962.0,90950.0,0.20386562]
[1764350013279,0.0436125,90962.0,90945.0,0.01328]
[1764350013280,0.01631,90946.0,90945.0,0.0685744]
[1764350013482,0.0436135,90954.0,90953.0,0.0443]
[1764350013670,0.2736134,90954.0,90953.0,0.0443]
[1764350014076,0.26262,90954.0,90953.0,0.0443]
[1764350014280,0.26272763,90954.0,90953.0,0.0443]
[1764350014676,0.26272763,90954.0,90945.0,0.01428]
[1764350014677,0.03262,90946.0,90945.0,0.03625]
[1764350014875,0.03262,90946.0,90945.0,0.05858]
[1764350015075,0.03272763,90954.0,90953.0,0.0443]
[1764350015385,0.25272763,90954.0,90953.0,0.0443]
[1764350015883,0.03262,90946.0,90945.0,0.07026471]
[1764350016070,0.43262,90946.0,90945.0,0.06926471]
[1764350016276,0.20262,90946.0,90945.0,0.06926471]
[1764350016482,0.3936144,90946.0,90945.0,0.06926471]
[1764350016677,0.03262,90937.0,90936.0,0.05758]
[1764350016877,0.45262,90937.0,90936.0,0.07116157]
[1764350017272,0.44762,90937.0,90936.0,0.07116157]
[1764350017471,0.42,90937.0,90936.0,0.07116157]
[1764350017671,0.00108067,90946.0,90945.0,0.05758]
[1764350017882,0.02362,90937.0,90936.0,0.01858157]
[1764350018082,0.02373504,90937.0,90936.0,0.01858157]
[1764350018386,0.79373504,90937.0,90936.0,0.01858157]
[1764350018586,0.79373504,90937.0,90936.0,0.04091157]
[1764350018782,0.39373504,90937.0,90936.0,0.06288157]
[1764350019685,0.02273504,90937.0,90936.0,0.06887717]
[1764350019994,0.00211504,90937.0,90936.0,0.06987717]
[1764350020177,0.37342504,90937.0,90936.0,0.05888157]
[1764350020385,0.39924264,90937.0,90936.0,0.05888157]
[1764350020788,0.41055264,90937.0,90936.0,0.05888157]
[1764350021288,0.05211504,90937.0,90936.0,0.05888157]
[1764350021590,0.00211504,90937.0,90936.0,0.05888157]
[1764350023393,0.02278487,90955.0,90954.0,0.0443]
[1764350023686,0.88858604,90955.0,90954.0,0.0443]
[1764350023882,0.02596604,90955.0,90954.0,0.0552934]
[1764350024083,0.0223014,90972.0,90971.0,0.0443]
[1764350024279,0.8436114,90972.0,90971.0,0.0443]
[1764350024681,0.6236114,90972.0,90971.0,0.0443]
[1764350025600,0.0336123,90963.0,90962.0,0.00016487]
[1764350025782,0.8636123,90963.0,90962.0,0.00016487]
[1764350026296,0.85262,90963.0,90962.0,0.02249487]
[1764350026497,0.8636123,90963.0,90962.0,0.02249487]
[1764350026998,0.8696123,90963.0,90962.0,0.02249487]
[1764350027399,0.8696123,90963.0,90962.0,0.04446487]
[1764350028296,0.6196123,90963.0,90962.0,0.04446487]
[1764350028686,0.5196123,90963.0,90962.0,0.04446487]
[1764350028900,0.8196123,90963.0,90962.0,0.04446487]
[1764350029103,0.5096123,90963.0,90962.0,0.04446487]
[1764350029497,0.7896123,90963.0,90962.0,0.04446487]
[1764350029705,0.8296123,90963.0,90962.0,0.04446487]
[1764350030199,0.8296123,90963.0,90962.0,0.00016487]
[1764350030594,0.5933723,90963.0,90962.0,0.00016487]
[1764350030801,1.0233723,90963.0,90962.0,0.00016487]
[1764350031004,0.6296123,90963.0,90962.0,0.00016487]
[1764350031200,0.8033723,90963.0,90962.0,0.00016487]
[1764350031405,0.9933723,90963.0,90962.0,0.00016487]
[1764350031903,0.033615,90941.0,90940.0,0.05758]
[1764350032204,0.38262,90941.0,90940.0,0.05758]
[1764350033205,0.38462,90941.0,90940.0,0.05758]
[1764350033708,0.02262,90931.0,90930.0,0.05758]
[1764350033897,0.82262,90931.0,90930.0,0.03561]
[1764350034092,0.02262,90931.0,90930.0,0.05758]
[1764350034301,0.01131,90938.0,90937.0,0.0443]
[1764350034505,0.17131,90938.0,90937.0,0.0443]
[1764350034706,0.39131,90938.0,90937.0,0.0443]
[1764350035503,0.40262,90938.0,90937.0,0.0443]
[1764350035708,0.62262,90938.0,90937.0,0.0443]
[1764350036005,0.35262,90938.0,90937.0,0.0443]
[1764350036198,0.47835202,90938.0,90937.0,0.0443]
[1764350036707,0.48635202,90938.0,90937.0,0.0443]
[1764350036896,0.46062,90938.0,90937.0,0.0443]
[1764350037095,0.86062,90938.0,90937.0,0.0443]
[1764350037405,0.88621886,90938.0,90937.0,0.0443]
[1764350037601,0.88621886,90938.0,90937.0,0.0552955]
[1764350037802,0.88622137,90938.0,90937.0,0.0443]
[1764350038004,0.48622137,90938.0,90937.0,0.0443]
[1764350038204,0.05622137,90938.0,90937.0,0.0552955]
[1764350038502,0.32622137,90938.0,90937.0,0.0552955]
[1764350038696,0.03360137,90938.0,90937.0,0.0552955]
[1764350038897,0.008,90938.0,90937.0,0.0552955]
[1764350039598,0.0109937,90952.0,90949.0,0.04329]
[1764350039797,0.02579758,90950.0,90949.0,0.04329]
[1764350040300,0.02262,90946.0,90945.0,0.01311]
[1764350040492,0.82825271,90946.0,90945.0,0.01311]
[1764350040692,0.82825271,90946.0,90936.0,0.0564]
[1764350040693,0.01131,90937.0,90936.0,0.0564]
[1764350040896,0.0109952,90940.0,90939.0,0.04329]
[1764350041197,0.0109948,90943.0,90942.0,0.04329]
[1764350041397,0.0423048,90943.0,90942.0,0.04329]
[1764350041596,0.07927542,90943.0,90942.0,0.04329]
[1764350042103,0.79927542,90943.0,90942.0,0.04329]
[1764350042609,0.0336155,90937.0,90936.0,0.0564]
[1764350042813,0.0336155,90937.0,90930.0,0.0485031]
[1764350042814,0.0336162,90931.0,90930.0,0.0485031]
[1764350042996,0.03668207,90931.0,90930.0,0.0698931]
[1764350043197,0.0109962,90931.0,90930.0,0.0698931]
[1764350043395,0.0396148,90943.0,90942.0,0.04329]
[1764350043705,0.82430842,90943.0,90942.0,0.04329]
[1764350043895,0.0162166,90943.0,90942.0,0.04329]
[1764350044103,0.00016487,90950.0,90949.0,0.04329]
[1764350044601,0.0109942,90948.0,90940.0,0.01311]
[1764350044803,0.0109945,90946.0,90943.0,0.0109946]
[1764350045004,0.00016487,90950.0,90949.0,0.04329]
[1764350045310,0.02262,90968.0,90967.0,0.04329]
[1764350045492,0.61262,90968.0,90967.0,0.04329]
[1764350046305,0.84262,90968.0,90967.0,0.04329]
[1764350046505,0.85262,90968.0,90967.0,0.04429]
[1764350046809,0.85262,90968.0,90967.0,0.001]
[1764350048006,0.85462,90968.0,90967.0,0.001]
[1764350049108,0.04462,90968.0,90967.0,0.04429]
[1764350049297,0.03331,90968.0,90967.0,0.04429]
[1764350049501,0.00016496,90977.0,90967.0,0.79429]
[1764350049701,0.04422471,91006.0,91005.0,0.04329]
[1764350049904,0.00027471,91006.0,91005.0,0.04329]
[1764350050107,0.04395,91001.0,91000.0,0.03501]
[1764350050312,0.04395,91001.0,91000.0,0.0673879]
[1764350050613,0.15,91001.0,91000.0,0.0673879]
[1764350050807,0.00027471,91006.0,91005.0,0.04329]
[1764350051009,0.04422471,91006.0,91005.0,0.04329]
[1764350051308,0.04395,91001.0,91000.0,0.03501]
[1764350051608,0.04395,90993.0,90992.0,0.0219]
[1764350051810,0.40395,90993.0,90992.0,0.0219]
[1764350052107,0.40395,90993.0,90992.0,0.04329]
[1764350052812,0.16495,90993.0,90992.0,0.04829]
[1764350053001,0.37495,90993.0,90992.0,0.04829]
[1764350054108,0.031,90993.0,90992.0,0.04829]
[1764350054310,0.0549377,91002.0,91001.0,0.0219]
[1764350054512,0.1849377,91002.0,91001.0,0.04329]
[1764350054711,0.00027471,91006.0,91005.0,0.04602]
[1764350054904,0.00027471,91006.0,91005.0,0.0570073]
[1764350055109,0.00016486,91010.0,91009.0,0.04602]
[1764350055310,0.02154486,91010.0,91009.0,0.04602]
[1764350055507,0.34154486,91010.0,91009.0,0.0570068]
[1764350055705,0.00016486,91010.0,91009.0,0.0570068]
[1764350056618,0.00016486,91010.0,91003.0,0.0129]
[1764350056619,0.02138,91004.0,91003.0,0.03619]
[1764350056917,0.04405,91006.0,91005.0,0.001]
[1764350057217,0.0323662,91014.0,91013.0,0.04602]
[1764350057417,0.19138,91014.0,91013.0,0.04602]
[1764350058316,0.19138,91014.0,91009.0,0.009]
[1764350058317,0.04405,91014.0,91005.0,0.0159872]
[1764350058526,0.0109867,91010.0,91009.0,0.04602]
[1764350058710,0.1,91010.0,91009.0,0.04602]
[1764350059520,0.1,91010.0,91009.0,0.0570068]
[1764350059824,0.001,91014.0,91013.0,0.04602]
[1764350061006,0.04405,91015.0,91014.0,0.03619]
[1764350061213,0.0550367,91010.0,91009.0,0.02729]
[1764350061519,0.4750367,91010.0,91009.0,0.02329]
[1764350061909,0.0550373,91005.0,91004.0,0.02345486]
[1764350062215,0.0550373,91005.0,91004.0,0.04618486]
[1764350062421,0.4750373,91005.0,91004.0,0.02345486]
[1764350062719,0.4750373,91005.0,91004.0,0.00016486]
[1764350062720,0.9050373,91005.0,91004.0,0.00016486]
[1764350063419,0.8350373,91005.0,91004.0,0.00016486]
[1764350065420,0.5950373,91005.0,91004.0,0.00016486]
[1764350065911,0.4160373,91005.0,91004.0,0.00316486]
[1764350066117,0.8360373,91005.0,91004.0,0.00316486]
[1764350066413,0.8133673,91005.0,91004.0,0.02645486]
[1764350066611,0.38238,91005.0,91004.0,0.04964486]
[1764350066806,0.40548,91005.0,91004.0,0.04964486]
[1764350067012,0.80548,91005.0,91004.0,0.00316486]
[1764350068023,0.80548,91005.0,91004.0,0.00616486]
[1764350068218,0.40548,91005.0,91004.0,0.00616486]
[1764350068423,0.17548,91005.0,91004.0,0.05205486]
[1764350068623,0.17548,91005.0,91004.0,0.05105486]
[1764350069315,0.40548,91005.0,91004.0,0.05105486]
[1764350069514,0.38238,91005.0,91004.0,0.05105486]
[1764350070423,0.83548,91005.0,91004.0,0.05105486]
[1764350070817,0.61448,91005.0,91004.0,0.04605486]
[1764350071124,0.61548,91005.0,91004.0,0.05105486]
[1764350071319,0.61548,91005.0,91004.0,0.00516486]
[1764350071525,0.61548,91005.0,91004.0,0.00616486]
[1764350071725,0.84548,91005.0,91004.0,0.00616486]
[1764350072121,0.35548,91005.0,91004.0,0.05205486]
[1764350072426,0.04548,91005.0,91004.0,0.00616486]
[1764350072627,0.0109899,90984.0,90974.0,0.0109909]
[1764350072830,0.0109899,90984.0,90960.0,0.33405983]
[1764350072831,0.04634,90984.0,90983.0,0.04589]
[1764350074121,0.47634,90984.0,90983.0,0.0227]
[1764350074429,0.0573309,90975.0,90974.0,0.00016486]
[1764350074626,0.9273309,90975.0,90974.0,0.00016486]
[1764350075532,0.9283309,90975.0,90974.0,0.00416486]
[1764350076124,0.6283309,90975.0,90974.0,0.00416486]
[1764350076324,0.7721309,90975.0,90974.0,0.00416486]
[1764350076634,0.0583309,90975.0,90974.0,0.05005486]
[1764350077332,0.9183309,90975.0,90974.0,0.05005486]
[1764350077634,0.9183309,90975.0,90974.0,0.00416486]
[1764350078135,0.5383309,90975.0,90974.0,0.05005486]
[1764350078331,0.09734,90975.0,90974.0,0.05005486]
[1764350078524,0.001,90975.0,90974.0,0.05005486]
[1764350079636,0.53734,90975.0,90974.0,0.00416486]
[1764350079831,0.46734,90975.0,90974.0,0.05005486]
[1764350080029,0.42734,90975.0,90974.0,0.05005486]
[1764350080229,0.17734,90975.0,90974.0,0.05005486]
[1764350080535,0.51734,90975.0,90974.0,0.05005486]
[1764350080937,0.04734,90975.0,90974.0,0.05005486]
[1764350081132,0.001,90975.0,90974.0,0.05005486]
[1764350084448,0.0109895,90987.0,90986.0,0.04589]
[1764350084951,0.0573295,90987.0,90986.0,0.04589]
[1764350085848,0.02324,90987.0,90986.0,0.04589]
[1764350086044,0.012,91010.0,90992.0,0.04589]
[1764350086045,0.05749356,90993.0,90992.0,0.04589]
[1764350086240,0.34749356,90993.0,90992.0,0.04589]
[1764350087143,0.0573294,90987.0,90986.0,0.04689]
[1764350087345,0.04634,90987.0,90986.0,0.04589]
[1764350087545,0.0109891,90990.0,90989.0,0.04589]
[1764350087546,0.0342291,90990.0,90989.0,0.04589]
[1764350087750,0.4442291,90990.0,90989.0,0.04589]
[1764350087951,0.19,90990.0,90989.0,0.04589]
[1764350088153,0.01615356,90993.0,90992.0,0.04589]
[1764350088355,0.41615356,90993.0,90992.0,0.04589]
[1764350089152,0.87149356,90993.0,90992.0,0.04589]
[1764350089552,0.86749356,90993.0,90992.0,0.04589]
[1764350090048,0.86849356,90993.0,90992.0,0.04589]
[1764350090245,0.87149356,90993.0,90992.0,0.04689]
[1764350091762,0.87149356,90993.0,90980.0,0.01453163]
[1764350091944,0.19913939,90992.0,90980.0,0.04589]
[1764350092154,0.19913939,90992.0,90966.0,0.00027483]
[1764350092155,0.04634,90982.0,90981.0,0.05925]
[1764350092643,0.44634,90982.0,90981.0,0.05925]
[1764350093359,0.07634,90982.0,90981.0,0.05925]
[1764350093655,0.001,90982.0,90981.0,0.06025]
[1764350094653,0.0109899,90984.0,90983.0,0.04589]
[1764350095450,0.0109895,90987.0,90986.0,0.04589]
[1764350096252,0.5058595,90987.0,90986.0,0.04589]
[1764350096961,0.53189443,90987.0,90986.0,0.04589]
[1764350097152,0.08189443,90987.0,90986.0,0.04589]
[1764350097354,0.08289443,90987.0,90986.0,0.04789]
[1764350097751,0.08189443,90987.0,90986.0,0.04589]
[1764350097959,0.08289443,90987.0,90986.0,0.04789]
[1764350098653,0.51289443,90987.0,90986.0,0.002]
[1764350098854,0.89289443,90987.0,90986.0,0.002]
[1764350100145,0.89289443,90987.0,90974.0,0.059857]
[1764350100146,0.0332409,90975.0,90974.0,0.059857]
[1764350100346,0.8848709,90975.0,90974.0,0.014797]
[1764350100752,0.8848709,90975.0,90974.0,0.00016486]
[1764350100969,0.0548719,90967.0,90966.0,0.00027483]
[1764350101156,0.04388,90937.0,90936.0,0.03608]
[1764350101454,0.0548767,90927.0,90911.0,0.10936683]
[1764350101655,0.4648767,90927.0,90909.0,0.01344]
[1764350101855,0.0332483,90914.0,90913.0,0.04506]
[1764350102060,0.012,90937.0,90921.0,0.04506]
[1764350102061,0.0109973,90922.0,90921.0,0.04506]
[1764350102359,0.00016496,90923.0,90922.0,0.04506]
[1764350102553,0.00016496,90923.0,90910.0,0.25625983]
[1764350102554,0.68016496,90923.0,90910.0,0.25625983]
[1764350102758,0.0109977,90919.0,90910.0,0.26725853]
[1764350102956,0.00016496,90923.0,90913.0,0.0109983]
[1764350103151,0.0548773,90922.0,90921.0,0.002]
[1764350103356,0.7748773,90922.0,90921.0,0.002]
[1764350103550,0.04388,90922.0,90921.0,0.04706]
[1764350103754,0.00016496,90923.0,90922.0,0.0560573]
[1764350104559,0.00316496,90923.0,90922.0,0.0560573]
[1764350105564,0.05804216,90923.0,90922.0,0.04506]
[1764350105765,0.04704496,90923.0,90922.0,0.04706]
[1764350105966,0.00016496,90923.0,90922.0,0.04706]
[1764350106172,0.00216496,90923.0,90922.0,0.05906]
[1764350106865,0.00216496,90923.0,90922.0,0.45906]
[1764350107057,4.96e-06,90923.0,90922.0,0.16906]
[1764350107259,4.96e-06,90923.0,90922.0,0.05906]
[1764350107568,4.96e-06,90923.0,90922.0,0.28906]
[1764350107869,0.04388,90952.0,90936.0,0.01344]
[1764350108067,0.00016496,90953.0,90952.0,0.04506]
[1764350108374,0.04388,90944.0,90943.0,0.00016496]
[1764350108664,0.81388,90944.0,90943.0,0.00016496]
[1764350108968,0.58388,90944.0,90943.0,0.00016496]
[1764350109164,0.83388,90944.0,90943.0,0.00016496]
[1764350109765,0.83588,90944.0,90943.0,0.00916496]
[1764350110965,0.83588,90944.0,90943.0,0.01016496]
[1764350111773,0.83588,90944.0,90943.0,4.96e-06]
[1764350111974,0.03062,90925.0,90924.0,0.01475812]
[1764350112163,0.0416175,90921.0,90920.0,0.04506]
[1764350112560,0.03062,90903.0,90902.0,0.02275606]
[1764350112767,0.0416196,90903.0,90902.0,0.02275606]
[1764350112973,0.03062,90903.0,90902.0,0.02275606]
[1764350113270,0.03062,90903.0,90902.0,0.04517606]
[1764350113468,0.01562,90903.0,90902.0,0.04517606]
[1764350113672,0.00047496,90912.0,90911.0,0.04506]
[1764350113972,0.00016496,90912.0,90911.0,0.04506]
[1764350114167,0.00078496,90912.0,90911.0,0.04506]
[1764350114373,0.01047286,90917.0,90916.0,0.04336]